Workbook

Sheet 12-18 изм
A1: Примерное меню и пищевая ценность приготовляемых блюд
A2: Рацион: Школьное меню | E2: День: | F2: понедельник
A3: Возраст : с 12 до 18 лет | D3: Неделя: | F3: 1
A4: № | B4: Прием пищи, наименование блюда | C4: Масса порции | D4: Пищевые вещества (г) | G4: Энерге-
A5: рец. | D5: Б | E5: Ж | F5: У | G5: тическая ценность (ккал)
A6: 1 | B6: 2 | C6: 3 | D6: 4 | E6: 5 | F6: 6 | G6: 7
A7: Завтрак
A8: 182 | B8: Каша манная молочная вязкая | C8: 250 | D8: 7.5 | E8: 10 | F8: 40.1 | G8: 297.5
A9: 27.01 | B9: Сыр (порциями) | C9: 10 | D9: 2.63 | E9: 2.66 | G9: 35
A10: 213 | B10: Яйцо вареное | C10: 40 | D10: 5.08 | E10: 4.6 | F10: 0.28 | G10: 63
A11: 685 | B11: Чай с сахаром | C11: 200 | D11: 0 | E11: 0 | F11: 9.98 | G11: 40
A12: 3 | B12: Хлеб пшеничный обогащенный йодированным белком( для детей дошкольного и школьного возраста) | C12: 50 | D12: 4 | E12: 0.6 | F12: 33 | G12: 142.5
B13: Масса порций | C13: =SUM(C8:C12) -> 550
A14: Итого за Завтрак | D14: =SUM(D8:D13) -> 19.21 | E14: =SUM(E8:E13) -> 17.86 | F14: 83.36 | G14: 578
A15: Итого стоимость рациона | G15: 81-00
A17: Примерное меню и пищевая ценность приготовляемых блюд
A18: Рацион: Школьное меню | E18: День: | F18: вторник
A19: Возраст : с 12 до 18 лет | D19: Неделя: | F19: 1
A20: № | B20: Прием пищи, наименование блюда | C20: Масса порции | D20: Пищевые вещества (г) | G20: Энерге-
A21: рец. | D21: Б | E21: Ж | F21: У | G21: тическая ценность (ккал)
A22: 1 | B22: 2 | C22: 3 | D22: 4 | E22: 5 | F22: 6 | G22: 7
A23: Завтрак
A24: 98 | B24: Биточки мясные с томатным соусом | C24: 100 | D24: 9.39 | E24: 13.42 | F24: 11.22 | G24: 204
A25: 212 | B25: Макаронные изделия отварные | C25: 200 | D25: 6.95 | E25: 5.14 | F25: 44.26 | G25: 251.2
A26: 278 | B26: Компот из смеси сухофруктов | C26: 200 | D26: 0.22 | E26: 0 | F26: 36.26 | G26: 138.14
A27: 3 | B27: Хлеб пшеничный обогащенный йодированным белком( для детей дошкольного и школьного возраста) | C27: 50 | D27: 4 | E27: 0.6 | F27: 33 | G27: 142.5
B28: Масса порций | C28: =SUM(C24:C27) -> 550
A29: Итого за Завтрак | D29: =SUM(D24:D28) -> 20.56 | E29: =SUM(E24:E28) -> 19.16 | F29: 124.74 | G29: 735.84
A30: Итого стоимость рациона | G30: 81-00
A32: Примерное меню и пищевая ценность приготовляемых блюд
A33: Рацион: Школьное меню | E33: День: | F33: среда
A34: Возраст : с 12 до 18 лет | D34: Неделя: | F34: 1
A35: № | B35: Прием пищи, наименование блюда | C35: Масса порции | D35: Пищевые вещества (г) | G35: Энерге-
A36: рец. | D36: Б | E36: Ж | F36: У | G36: тическая ценность (ккал)
A37: 1 | B37: 2 | C37: 3 | D37: 4 | E37: 5 | F37: 6 | G37: 7
A38: Завтрак
A39: 82 | B39: Котлеты из рыбы с том соусом | C39: 100 | D39: 7.7 | E39: 5.5 | F39: 10.4 | G39: 126.1
A40: 179 | B40: Каша рисовая рассыпчатая | C40: 200 | D40: 4.78 | E40: 5.2 | F40: 49.06 | G40: 266.66
A41: 686 | B41: Чай с лимоном и сахаром | C41: 200 | D41: 0.06 | E41: 0.01 | F41: 10.19 | G41: 42.28
A42: 3 | B42: Хлеб пшеничный обогащенный йодированным белком( для детей дошкольного и школьного возраста) | C42: 50 | D42: 4 | E42: 0.6 | F42: 33 | G42: 142.5
B43: Масса порций | C43: =SUM(C39:C42) -> 550
A44: Итого за Завтрак | D44: =SUM(D39:D42) -> 16.54 | E44: =SUM(E39:E42) -> 11.31 | F44: 102.65 | G44: 577.54
A45: Итого стоимость рациона | G45: 81-00
A47: Примерное меню и пищевая ценность приготовляемых блюд
A48: Рацион: Школьное меню | E48: День: | F48: четверг
A49: Возраст : с 12 до 18 лет | D49: Неделя: | F49: 1
A50: № | B50: Прием пищи, наименование блюда | C50: Масса порции | D50: Пищевые вещества (г) | G50: Энерге-
A51: рец. | D51: Б | E51: Ж | F51: У | G51: тическая ценность (ккал)
A52: 1 | B52: 2 | C52: 3 | D52: 4 | E52: 5 | F52: 6 | G52: 7
A53: Завтрак
A54: 205 | B54: Котлеты куриные с соусом | C54: 100 | D54: 9.82 | E54: 14.48 | F54: 11.91 | G54: 217
A55: 175 | B55: Каша гречневая рассыпчатая | C55: 200 | D55: 10.9 | E55: 3.8 | F55: 45 | G55: 288.6
A56: 685 | B56: Чай с сахаром | C56: 200 | D56: 0 | E56: 0 | F56: 9.98 | G56: 40
A57: 3 | B57: Хлеб пшеничный обогащенный йодированным белком( для детей дошкольного и школьного возраста) | C57: 50 | D57: 4 | E57: 0.6 | F57: 33 | G57: 142.5
B58: Масса порций | C58: =SUM(C54:C57) -> 550
A59: Итого за Завтрак | D59: =SUM(D54:D58) -> 24.72 | E59: =SUM(E54:E58) -> 18.88 | F59: =SUM(F54:F58) -> 99.89 | G59: =SUM(G54:G58) -> 688.1
A60: Итого стоимость рациона | G60: 81-00
A62: Примерное меню и пищевая ценность приготовляемых блюд
A63: Рацион: Школьное меню | E63: День: | F63: пятница
A64: Возраст : с 12 до 18 лет | D64: Неделя: | F64: 1
A65: № | B65: Прием пищи, наименование блюда | C65: Масса порции | D65: Пищевые вещества (г) | G65: Энерге-
A66: рец. | D66: Б | E66: Ж | F66: У | G66: тическая ценность (ккал)
A67: 1 | B67: 2 | C67: 3 | D67: 4 | E67: 5 | F67: 6 | G67: 7
A68: Завтрак
A69: 302 | B69: Каша молочная" Дружба" с маслом | C69: 210 | D69: 6.4 | E69: 8.6 | F69: 33.5 | G69: 237.2
A70: 648 | B70: Кисель плодовоягодный | C70: 200 | D70: 0 | E70: 0 | F70: 20 | G70: 76
A71: 1 | B71: Яблоко | C71: 100 | D71: 0.5 | E71: 0.5 | F71: 12.3 | G71: 59
A72: 3 | B72: Хлеб пшеничный обогащенный йодированным белком( для детей дошкольного и школьного возраста) | C72: 50 | D72: 4 | E72: 0.6 | F72: 33 | G72: 142.5
A73: 27.01 | B73: Сыр (порциями) | C73: 10 | D73: 2.63 | E73: 2.66 | G73: 35
B74: Масса порций | C74: =SUM(C69:C73) -> 570
A75: Итого за Завтрак | D75: =SUM(D69:D74) -> 13.53 | E75: =SUM(E69:E74) -> 12.36 | F75: 98.8 | G75: 549.7
A76: Итого стоимость рациона | G76: 81-00
A78: Примерное меню и пищевая ценность приготовляемых блюд
A79: Рацион: Школьное меню | E79: День: | F79: понедельник
A80: Возраст : с 12 до 18 лет | D80: Неделя: | F80: 2
A81: № | B81: Прием пищи, наименование блюда | C81: Масса порции | D81: Пищевые вещества (г) | G81: Энерге-
A82: рец. | D82: Б | E82: Ж | F82: У | G82: тическая ценность (ккал)
A83: 1 | B83: 2 | C83: 3 | D83: 4 | E83: 5 | F83: 6 | G83: 7
A84: Завтрак
A85: 197 | B85: Каша рисовая молочная жидкая | C85: 210 | D85: 9.1 | E85: 8.2 | F85: 40.9 | G85: 262
A86: 685 | B86: Чай с сахаром | C86: 200 | D86: 0.1 | E86: 0 | F86: 9.1 | G86: 35
A87: 27.01 | B87: Сыр (порциями) | C87: 10 | D87: 2.63 | E87: 2.66 | G87: 35
A88: 399 | B88: Сок фруктовый | C88: 200 | D88: 0 | E88: 0 | F88: 12 | G88: 48
A89: 3 | B89: Хлеб пшеничный обогащенный йодированным белком( для детей дошкольного и школьного возраста) | C89: 50 | D89: 4 | E89: 0.6 | F89: 33 | G89: 142.5
B90: Масса порций | C90: =SUM(C85:C89) -> 670
A91: Итого за Завтрак | D91: =SUM(D85:D90) -> 15.83 | E91: =SUM(E85:E90) -> 11.46 | F91: 95 | G91: 522.5
A92: Итого стоимость рациона | G92: 81-00
A94: Примерное меню и пищевая ценность приготовляемых блюд
A95: Рацион: Школьное меню | E95: День: | F95: вторник
A96: Возраст : с 12 до 18 лет | D96: Неделя: | F96: 2
A97: № | B97: Прием пищи, наименование блюда | C97: Масса порции | D97: Пищевые вещества (г) | G97: Энерге-
A98: рец. | D98: Б | E98: Ж | F98: У | G98: тическая ценность (ккал)
A99: 1 | B99: 2 | C99: 3 | D99: 4 | E99: 5 | F99: 6 | G99: 7
A100: Завтрак
A101: 106 | B101: Тефтели из говядины с томатным соусом | C101: 100 | D101: 8.76 | E101: 12.21 | F101: 9.33 | G101: 180.64
A102: 171 | B102: Картофельное пюре | C102: 200 | D102: 4.11 | E102: 6.55 | F102: 26.66 | G102: 265.33
A103: 692 | B103: Кофейный напиток | C103: 200 | D103: 2.8 | E103: 2.2 | F103: 14.8 | G103: 87
A104: 3 | B104: Хлеб пшеничный обогащенный йодированным белком( для детей дошкольного и школьного возраста) | C104: 50 | D104: 4 | E104: 0.6 | F104: 33 | G104: 142.5
B105: Масса порций | C105: =SUM(C101:C104) -> 550
A106: Итого за Завтрак | D106: =SUM(D101:D105) -> 19.67 | E106: =SUM(E101:E105) -> 21.56 | F106: 83.79 | G106: 675.47
A107: Итого стоимость рациона | G107: 81-00
A109: Примерное меню и пищевая ценность приготовляемых блюд
A110: Рацион: Школьное меню | E110: День: | F110: среда
A111: Возраст : с 12 до 18 лет | D111: Неделя: | F111: 2
A112: № | B112: Прием пищи, наименование блюда | C112: Масса порции | D112: Пищевые вещества (г) | G112: Энерге-
A113: рец. | D113: Б | E113: Ж | F113: У | G113: тическая ценность (ккал)
A114: 1 | B114: 2 | C114: 3 | D114: 4 | E114: 5 | F114: 6 | G114: 7
A115: Завтрак
A116: 131 | B116: Плов из мяса птицы (филе) | C116: 220 | D116: 18.59 | E116: 20.41 | F116: 45.58 | G116: 439.76
A117: 685 | B117: Чай с сахаром | C117: 200 | D117: 0.1 | E117: 0 | F117: 9.1 | G117: 35
A118: 43 | B118: Салат из овощей | C118: 100 | D118: 2.6 | E118: 5.4 | F118: 12.4 | G118: 108
A119: 3 | B119: Хлеб пшеничный обогащенный йодированным белком( для детей дошкольного и школьного возраста) | C119: 50 | D119: 4 | E119: 0.6 | F119: 33 | G119: 142.5
B120: Масса порций | C120: =SUM(C116:C119) -> 570
A121: Итого за Завтрак | D121: =SUM(D116:D120) -> 25.29 | E121: =SUM(E116:E120) -> 26.41 | F121: =SUM(F116:F120) -> 100.08 | G121: =SUM(G116:G120) -> 725.26
A122: Итого стоимость рациона | G122: 81-00
A124: Примерное меню и пищевая ценность приготовляемых блюд
A125: Рацион: Школьное меню | E125: День: | F125: четверг
A126: Возраст : с 12 до 18 лет | D126: Неделя: | F126: 2
A127: № | B127: Прием пищи, наименование блюда | C127: Масса порции | D127: Пищевые вещества (г) | G127: Энерге-
A128: рец. | D128: Б | E128: Ж | F128: У | G128: тическая ценность (ккал)
A129: 1 | B129: 2 | C129: 3 | D129: 4 | E129: 5 | F129: 6 | G129: 7
A130: Завтрак
A131: 469 | B131: Фрикадельки мясные с томатным соусом | C131: 100 | D131: 9.25 | E131: 9.84 | F131: 7.96 | G131: 157.63
A132: 212 | B132: Макаронные изделия отварные | C132: 200 | D132: 6.95 | E132: 5.14 | F132: 44.26 | G132: 251.2
A133: 278 | B133: Компот из смеси сухофруктов | C133: 200 | D133: 0.22 | E133: 0 | F133: 36.26 | G133: 138.14
A134: 3 | B134: Хлеб пшеничный обогащенный йодированным белком( для детей дошкольного и школьного возраста) | C134: 50 | D134: 4 | E134: 0.6 | F134: 33 | G134: 142.5
B135: Масса порций | C135: =SUM(C131:C134) -> 550
A136: Итого за Завтрак | D136: =SUM(D131:D135) -> 20.42 | E136: =SUM(E131:E135) -> 15.58 | F136: 121.48 | G136: 689.47
A137: Итого стоимость рациона | G137: 81-00
A139: Примерное меню и пищевая ценность приготовляемых блюд
A140: Рацион: Школьное меню | E140: День: | F140: пятница
A141: Возраст : с 12 до 18 лет | D141: Неделя: | F141: 2
A142: № | B142: Прием пищи, наименование блюда | C142: Масса порции | D142: Пищевые вещества (г) | G142: Энерге-
A143: рец. | D143: Б | E143: Ж | F143: У | G143: тическая ценность (ккал)
A144: 1 | B144: 2 | C144: 3 | D144: 4 | E144: 5 | F144: 6 | G144: 7
A145: Завтрак
A146: 196 | B146: Гуляш из говядины | C146: 100 | D146: 15.66 | E146: 16.44 | F146: 2.91 | G146: 222.72
A147: 173 | B147: Каша гречневая рассыпчатая | C147: 180 | D147: 10.8 | E147: 8.4 | F147: 46.8 | G147: 308.4
A148: 8 | B148: Кисломолочный продукт для детского питания | C148: 100 | D148: 3.2 | E148: 3.2 | F148: 4.5 | G148: 62
A149: 686 | B149: Чай с лимоном и сахаром | C149: 200 | D149: 0.06 | E149: 0.01 | F149: 10.19 | G149: 42.28
A150: 3 | B150: Хлеб пшеничный обогащенный йодированным белком( для детей дошкольного и школьного возраста) | C150: 40 | D150: 4 | E150: 0.6 | F150: 33 | G150: 142.5
B151: Масса порций | C151: =SUM(C146:C150) -> 620
A152: Итого за Завтрак | D152: =SUM(D146:D151) -> 33.72 | E152: =SUM(E146:E151) -> 28.65 | F152: =SUM(F146:F151) -> 97.4 | G152: =SUM(G146:G151) -> 777.9
A153: Итого стоимость рациона | G153: 81-00

Sheet ОВЗ 7-11 измен
A1: Примерное меню и пищевая ценность приготовляемых блюд
A2: Рацион: Школьное меню | D2: День: | E2: понедельник
A3: ОВЗ С 7 до 11лет | C3: Неделя: | E3: 1
A4: № | B4: Прием пищи, наименование блюда | C4: Масса порции | D4: Пищевые вещества (г) | G4: Энерге-
A5: рец. | D5: Б | E5: Ж | F5: У | G5: тическая ценность (ккал)
A6: 1 | C6: 3 | D6: 4 | E6: 5 | F6: 6 | G6: 7
A7: Завтрак
A8: 182 | B8: Каша манная молочная вязкая | C8: 200 | D8: 6 | E8: 8 | F8: 32 | G8: 238
A9: 7 | B9: Сыр (порциями) | C9: 10 | D9: 2.63 | E9: 2.66 | G9: 35
A10: 306 | B10: Яйцо вареное | C10: 40 | D10: 5.08 | E10: 4.6 | F10: 0.28 | G10: 63
A11: 685 | B11: Чай с сахаром | C11: 200 | D11: 0 | E11: 0 | F11: 9.98 | G11: 40
A12: 3 | B12: Хлеб пшеничный обогащенный йодированным белком( для детей дошкольного и школьного возраста) | C12: 50 | D12: 4 | E12: 0.6 | F12: 33 | G12: 143
C13: =SUM(C8:C12) -> 500
A14: Итого за Завтрак | D14: =SUM(D8:D12) -> 17.71 | E14: =SUM(E8:E12) -> 15.86 | F14: =SUM(F8:F12) -> 75.26 | G14: =SUM(G8:G12) -> 519
A15: Обед
A16: 6 | B16: Салат из белокачанной капусты | C16: 60 | D16: 1.38 | E16: 3.08 | F16: 7.01 | G16: 62.12
A17: 140 | B17: Суп картофельный с макаронными изделиями | C17: 200 | D17: 2 | E17: 2 | F17: 17 | G17: 97
A18: 97 | B18: Жаркое по-домашнему | C18: 200 | D18: 19.3 | E18: 19.9 | F18: 18.9 | G18: 334.44
A19: 295 | B19: Компот из свежих плодов | C19: 200 | D19: 0.2 | E19: 0.1 | F19: 17.2 | G19: 97.6
A20: 3 | B20: Хлеб пшеничный обогащенный йодированным белком( для детей дошкольного и школьного возраста) | C20: 50 | D20: 4 | E20: 0.6 | F20: 33 | G20: 143
A21: Итого за обед | C21: =SUM(C16:C20) -> 710 | D21: =SUM(D16:D20) -> 26.88 | E21: 25.68 | F21: 93.11 | G21: 734.16
A22: Итого за день | C22: =C13+C21 -> 1210 | D22: =D14+D21 -> 44.59 | E22: =E14+E21 -> 41.54 | F22: =F14+F21 -> 168.37 | G22: =G14+G21 -> 1253.16
A23: Итого стоимость рациона | G23: 167-20
A34: Примерное меню и пищевая ценность приготовляемых блюд
A35: Рацион: Школьное меню | D35: День: | E35: вторник
A36: ОВЗ С 7 до 11лет | C36: Неделя: | E36: 1
A37: № | B37: Прием пищи, наименование блюда | C37: Масса порции | D37: Пищевые вещества (г) | G37: Энерге-
A38: рец. | D38: Б | E38: Ж | F38: У | G38: тическая ценность (ккал)
A39: 1 | C39: 3 | D39: 4 | E39: 5 | F39: 6 | G39: 7
A40: Завтрак
A41: 98 | B41: Биточки мясные с томатным соусом | C41: 100 | D41: 9.97 | E41: 11.9 | F41: 8.87 | G41: 182.53
A42: 212 | B42: Макаронные изделия отварные | C42: 150 | D42: 5.82 | E42: 4.31 | F42: 37.08 | G42: 210.5
A43: 278 | B43: Компот из смеси сухофруктов | C43: 200 | D43: 0.22 | E43: 0 | F43: 36.26 | G43: 138.14
A44: 3 | B44: Хлеб пшеничный обогащенный йодированным белком( для детей дошкольного и школьного возраста) | C44: 50 | D44: 4 | E44: 0.6 | F44: 33 | G44: 143
B45: Масса порций | C45: =SUM(C41:C44) -> 500
A46: Итого за Завтрак | D46: =SUM(D41:D45) -> 20.01 | E46: =SUM(E41:E45) -> 16.81 | F46: 115.21 | G46: 674.17
A47: Обед
A48: 6 | B48: Огурцы соленые, порционно | C48: 60 | D48: 0 | E48: 0 | F48: 1.8 | G48: 30.18
A49: 63 | B49: Суп картофельный с горохом | C49: 200 | D49: 5 | E49: 5 | F49: 17 | G49: 128
A50: 131 | B50: Плов из мяса птицы (филе) | C50: 200 | D50: 16.9 | E50: 18.56 | F50: 41.44 | G50: 400
A51: 685 | B51: Чай с молоком и сахаром | C51: 200 | D51: 1.4 | E51: 1.4 | F51: 11.2 | G51: 61
A52: 3 | B52: Хлеб пшеничный обогащенный йодированным белком( для детей дошкольного и школьного возраста) | C52: 50 | D52: 4 | E52: 0.6 | F52: 33 | G52: 143
A53: Итого за обед | C53: =SUM(C48:C52) -> 710 | D53: =SUM(D48:D52) -> 27.3 | E53: =SUM(E48:E52) -> 25.56 | F53: =SUM(F48:F52) -> 104.44 | G53: =SUM(G48:G52) -> 762.18
A54: Итого за день | C54: =C45+C53 -> 1210 | D54: =D45+D53 -> 27.3 | E54: =E45+E53 -> 25.56 | F54: =F45+F53 -> 104.44 | G54: =G45+G53 -> 762.18
A55: Итого стоимость рациона | G55: 167-20
A63: Примерное меню и пищевая ценность приготовляемых блюд
A64: Рацион: Школьное меню | D64: День: | E64: среда
A65: ОВЗ С 7 до 11лет | C65: Неделя: | E65: 1
A66: № | B66: Прием пищи, наименование блюда | C66: Масса порции | D66: Пищевые вещества (г) | G66: Энерге-
A67: рец. | D67: Б | E67: Ж | F67: У | G67: тическая ценность (ккал)
A68: 1 | C68: 3 | D68: 4 | E68: 5 | F68: 6 | G68: 7
A69: Завтрак
A70: 82 | B70: Котлеты из рыбы с том соусом | C70: 100 | D70: 7.7 | E70: 5.5 | F70: 10.4 | G70: 126.1
A71: 179 | B71: Каша рисовая рассыпчатая | C71: 150 | D71: 3.58 | E71: 3.9 | F71: 36.8 | G71: 200
A72: 686 | B72: Чай с лимоном и сахаром | C72: 200 | D72: 0.06 | E72: 0.01 | F72: 10.19 | G72: 42.28
A73: 3 | B73: Хлеб пшеничный обогащенный йодированным белком( для детей дошкольного и школьного возраста) | C73: 50 | D73: 4 | E73: 0.6 | F73: 33 | G73: 143
A74: Итого за Завтрак | C74: =SUM(C70:C73) -> 500 | D74: =SUM(D70:D73) -> 15.34 | E74: =SUM(E70:E73) -> 10.01 | F74: 90.39 | G74: 511.38
A75: Обед
A76: 5 | B76: Свекла отварная порционно | C76: 60 | D76: 0.9 | E76: 0.1 | F76: 5.9 | G76: 28
A77: 148 | B77: Суп-лапша | C77: 200 | D77: 2 | E77: 6 | F77: 11 | G77: 104
A78: 171 | B78: Картофельное пюре | C78: 150 | D78: 3.08 | E78: 4.92 | F78: 20 | G78: 199
A79: 469 | B79: Фрикадельки мясные с томатным соусом | C79: 100 | D79: 9.25 | E79: 9.84 | F79: 7.96 | G79: 157.63
A80: 685 | B80: Чай с сахаром | C80: 200 | D80: 0 | E80: 0 | F80: 9.98 | G80: 39.9
A81: 3 | B81: Хлеб пшеничный обогащенный йодированным белком( для детей дошкольного и школьного возраста) | C81: 50 | D81: 4 | E81: 0.6 | F81: 33 | G81: 143
A82: Итого за обед | C82: =SUM(C76:C81) -> 760 | D82: =SUM(D76:D81) -> 19.23 | E82: =SUM(E76:E81) -> 21.46 | F82: 87.84 | G82: 671.53
A83: Итого за день | C83: =C74+C82 -> 1260 | D83: =D74+D82 -> 34.57 | E83: =E74+E82 -> 31.47 | F83: 178.23 | G83: 1182.91
A84: Итого стоимость рациона | G84: 167-20
A90: Примерное меню и пищевая ценность приготовляемых блюд
A91: Рацион: Школьное меню | D91: День: | E91: четверг
A92: ОВЗ С 7 до 11лет | C92: Неделя: | E92: 1
A93: № | B93: Прием пищи, наименование блюда | C93: Масса порции | D93: Пищевые вещества (г) | G93: Энерге-
A94: рец. | D94: Б | E94: Ж | F94: У | G94: тическая ценность (ккал)
A95: 1 | C95: 3 | D95: 4 | E95: 5 | F95: 6 | G95: 7
A96: Завтрак
A97: 205 | B97: Котлеты куриные из филе кур | C97: 100 | D97: 20.68 | E97: 17.03 | F97: 19.79 | G97: 318.55
A98: 175 | B98: Каша гречневая рассыпчатая | C98: 150 | D98: 8.19 | E98: 5.12 | F98: 33.81 | G98: 216.58
A99: 685 | B99: Чай с сахаром | C99: 200 | D99: 0 | E99: 0 | F99: 9.98 | G99: 40
A100: 3 | B100: Хлеб пшеничный обогащенный йодированным белком( для детей дошкольного и школьного возраста) | C100: 50 | D100: 4 | E100: 0.6 | F100: 33 | G100: 143
B101: Масса порций | C101: =SUM(C97:C100) -> 500
A102: Итого за Завтрак | D102: =SUM(D97:D101) -> 32.87 | E102: =SUM(E97:E101) -> 22.75 | F102: 96.58 | G102: 718.13
A103: Обед
A104: 17 | B104: Салат из моркови | C104: 60 | D104: 0.42 | E104: 1.83 | F104: 2.25 | G104: 27.59
A105: 56 | B105: Борщ с капустой и картофелем | C105: 200 | D105: 2.03 | E105: 5.67 | F105: 10.16 | G105: 100.62
A106: 98 | B106: Биточки мясные с томатным соусом | C106: 100 | D106: 9.97 | E106: 11.9 | F106: 8.87 | G106: 182.53
A107: 212 | B107: Макаронные изделия отварные | C107: 150 | D107: 5.82 | E107: 4.31 | F107: 37.08 | G107: 210.5
A108: 685 | B108: Чай с сахаром | C108: 200 | D108: 0 | E108: 0 | F108: 9.98 | G108: 39.9
A109: 3 | B109: Хлеб пшеничный обогащенный йодированным белком( для детей дошкольного и школьного возраста) | C109: 50 | D109: 4 | E109: 0.6 | F109: 33 | G109: 143
A110: Итого за обед | C110: =SUM(C104:C109) -> 760 | D110: =SUM(D104:D109) -> 22.24 | E110: =SUM(E104:E109) -> 24.31 | F110: 101.34 | G110: 704.14
A111: Итого за день | C111: =C101+C110 -> 1260 | D111: =D102+D110 -> 55.11 | E111: =E102+E110 -> 47.06 | F111: 197.92 | G111: 1422.27
A112: Итого стоимость рациона | G112: 167-20
A119: Примерное меню и пищевая ценность приготовляемых блюд
A120: Рацион: Школьное меню | D120: День: | E120: пятница
A121: ОВЗ С 7 до 11лет | C121: Неделя: | E121: 1
A122: № | B122: Прием пищи, наименование блюда | C122: Масса порции | D122: Пищевые вещества (г) | G122: Энерге-
A123: рец. | D123: Б | E123: Ж | F123: У | G123: тическая ценность (ккал)
A124: 1 | C124: 3 | D124: 4 | E124: 5 | F124: 6 | G124: 7
A125: Завтрак
A126: 302 | B126: Каша молочная" Дружба" с маслом | C126: 210 | D126: 6.4 | E126: 8.6 | F126: 33.5 | G126: 237.2
A127: 648 | B127: Кисель плодовоягодный | C127: 200 | D127: 0 | E127: 0 | F127: 20 | G127: 76
A128: 1 | B128: Яблоко | C128: 100 | D128: 0.5 | E128: 0.5 | F128: 12.3 | G128: 59
A129: 3 | B129: Хлеб пшеничный обогащенный йодированным белком( для детей дошкольного и школьного возраста) | C129: 50 | D129: 4 | E129: 0.6 | F129: 33 | G129: 143
A130: 27 | B130: Сыр (порциями) | C130: 10 | D130: 2.63 | E130: 2.66 | G130: 35
B131: Масса порций | C131: =SUM(C126:C130) -> 570
A132: Итого за Завтрак | D132: =SUM(D126:D131) -> 13.53 | E132: =SUM(E126:E131) -> 12.36 | F132: 98.8 | G132: 550.2
A133: Обед
A134: 43 | B134: Салат из овощей | C134: 60 | D134: 1.56 | E134: 3.24 | F134: 7.44 | G134: 64.8
A135: 54 | B135: Рассольник Ленинградский | C135: 200 | D135: 2.09 | E135: 5.01 | F135: 13.9 | G135: 109.77
A136: 33 | B136: Курица тушеная с томатном соусе | C136: 100 | D136: 15.3 | E136: 16.53 | F136: 5.9 | G136: 257.92
A137: 221 | B137: Каша пшеничная рассыпчатая | C137: 150 | D137: 8.7 | E137: 4.1 | F137: 39.4 | G137: 214
A138: 685 | B138: Чай с сахаром | C138: 200 | D138: 0 | E138: 0 | F138: 9.98 | G138: 39.9
A139: 3 | B139: Хлеб пшеничный обогащенный йодированным белком( для детей дошкольного и школьного возраста) | C139: 50 | D139: 4 | E139: 0.6 | F139: 33 | G139: 143
A140: Итого за обед | C140: =SUM(C134:C139) -> 760 | D140: =SUM(D134:D139) -> 31.65 | E140: =SUM(E134:E139) -> 29.48 | F140: =SUM(F134:F139) -> 109.62 | G140: =SUM(G134:G139) -> 829.39
A141: Итого за день | C141: =C131+C140 -> 1330 | D141: =D132+D140 -> 45.18 | E141: =E132+E140 -> 41.84 | F141: =F132+F140 -> 208.42 | G141: =G132+G140 -> 1379.59
A142: Итого стоимость рациона | G142: 167-20
A149: Примерное меню и пищевая ценность приготовляемых блюд
A150: Рацион: Школьное меню | D150: День: | E150: понедельник
A151: ОВЗ С 7 до 11лет | C151: Неделя: | E151: 2
A152: № | B152: Прием пищи, наименование блюда | C152: Масса порции | D152: Пищевые вещества (г) | G152: Энерге-
A153: рец. | D153: Б | E153: Ж | F153: У | G153: тическая ценность (ккал)
A154: 1 | C154: 3 | D154: 4 | E154: 5 | F154: 6 | G154: 7
A155: Завтрак
A156: 197 | B156: Каша рисовая молочная жидкая | C156: 210 | D156: 9.1 | E156: 8.2 | F156: 40.9 | G156: 262
A157: 27 | B157: Сыр (порциями) | C157: 10 | D157: 2.63 | E157: 2.66 | G157: 35
A158: 685 | B158: Чай с сахаром | C158: 200 | D158: 0 | E158: 0 | F158: 9.7 | G158: 39
A159: 399 | B159: Сок фруктовый | C159: 200 | D159: 0 | E159: 0 | F159: 12 | G159: 48
A160: 3 | B160: Хлеб пшеничный обогащенный йодированным белком( для детей дошкольного и школьного возраста) | C160: 50 | D160: 4 | E160: 0.6 | F160: 33 | G160: 143
B161: Масса порций | C161: =SUM(C156:C160) -> 670
A162: Итого за Завтрак | D162: =SUM(D156:D161) -> 15.73 | E162: =SUM(E156:E161) -> 11.46 | F162: 95.6 | G162: 527
A163: Обед
A164: 6 | B164: Салат из белокачанной капусты | C164: 60 | D164: 1.38 | E164: 3.08 | F164: 7.01 | G164: 62.12
A165: 63 | B165: Суп картофельный с горохом | C165: 200 | D165: 5 | E165: 5 | F165: 17 | G165: 128
A166: 212 | B166: Макаронные изделия отварные | C166: 150 | D166: 5.82 | E166: 4.31 | F166: 37.08 | G166: 210.5
A167: 205 | B167: Котлеты куриные из филе кур | C167: 100 | D167: 20.68 | E167: 17.03 | F167: 19.79 | G167: 318.55
A168: 648 | B168: Кисель плодовоягодный | C168: 200 | D168: 0 | E168: 0 | F168: 20 | G168: 76
A169: 3 | B169: Хлеб пшеничный обогащенный йодированным белком( для детей дошкольного и школьного возраста) | C169: 50 | D169: 4 | E169: 0.6 | F169: 33 | G169: 143
A170: Итого за обед | C170: =SUM(C164:C169) -> 760 | D170: =SUM(D164:D169) -> 36.88 | E170: =SUM(E164:E169) -> 30.02 | F170: =SUM(F164:F169) -> 133.88 | G170: =SUM(G164:G169) -> 938.17
A171: Итого за день | C171: =C161+C170 -> 1430 | D171: =D162+D170 -> 52.61 | E171: =E162+E170 -> 41.48 | F171: =F162+F170 -> 229.48 | G171: =G162+G170 -> 1465.17
A172: Итого стоимость рациона | G172: 167-20
A178: Примерное меню и пищевая ценность приготовляемых блюд
A179: Рацион: Школьное меню | D179: День: | E179: вторник
A180: ОВЗ С 7 до 11лет | C180: Неделя: | E180: 2
A181: № | B181: Прием пищи, наименование блюда | C181: Масса порции | D181: Пищевые вещества (г) | G181: Энерге-
A182: рец. | D182: Б | E182: Ж | F182: У | G182: тическая ценность (ккал)
A183: 1 | C183: 3 | D183: 4 | E183: 5 | F183: 6 | G183: 7
A184: Завтрак
A185: 106 | B185: Тефтели из говядины с томатным соусом | C185: 100 | D185: 8.76 | E185: 12.21 | F185: 8.85 | G185: 180.64
A186: 171 | B186: Картофельное пюре | C186: 150 | D186: 3.08 | E186: 4.92 | F186: 20 | G186: 199
A187: 692 | B187: Кофейный напиток | C187: 200 | D187: 2.8 | E187: 2.2 | F187: 14.8 | G187: 87
A188: 3 | B188: Хлеб пшеничный обогащенный йодированным белком( для детей дошкольного и школьного возраста) | C188: 50 | D188: 4 | E188: 0.6 | F188: 33 | G188: 143
B189: Масса порций | C189: =SUM(C185:C188) -> 500
A190: Итого за Завтрак | D190: =SUM(D185:D189) -> 18.64 | E190: =SUM(E185:E189) -> 19.93 | F190: 76.65 | G190: 609.64
A191: Обед
A192: 6 | B192: Огурцы соленые, порционно | C192: 60 | D192: 0 | E192: 0 | F192: 1.8 | G192: 30.18
A193: 148 | B193: Суп с клецками | C193: 200 | D193: 2.22 | E193: 4.23 | F193: 12.49 | G193: 97.08
A194: 82 | B194: Котлеты из рыбы с том соусом | C194: 100 | D194: 7.7 | E194: 5.5 | F194: 10.4 | G194: 126.1
A195: 173 | B195: Каша гречневая рассыпчатая | C195: 150 | D195: 9 | E195: 7 | F195: 39 | G195: 257
A196: 685 | B196: Чай с сахаром | C196: 200 | D196: 0 | E196: 0 | F196: 9.98 | G196: 39.9
A197: 3 | B197: Хлеб пшеничный обогащенный йодированным белком( для детей дошкольного и школьного возраста) | C197: 50 | D197: 4 | E197: 0.6 | F197: 33 | G197: 143
A198: Итого за обед | C198: =SUM(C192:C197) -> 760 | D198: =SUM(D192:D197) -> 22.92 | E198: =SUM(E192:E197) -> 17.33 | F198: =SUM(F192:F197) -> 106.67 | G198: =SUM(G192:G197) -> 693.26
A199: Итого за день | C199: =C189+C198 -> 1260 | D199: =D190+D198 -> 41.56 | E199: =E190+E198 -> 37.26 | F199: =F190+F198 -> 183.32 | G199: =G190+G198 -> 1302.9
A200: Итого стоимость рациона | G200: 167-20
A207: Примерное меню и пищевая ценность приготовляемых блюд
A208: Рацион: Школьное меню | D208: День: | E208: среда
A209: ОВЗ С 7 до 11лет | C209: Неделя: | E209: 2
A210: № | B210: Прием пищи, наименование блюда | C210: Масса порции | D210: Пищевые вещества (г) | G210: Энерге-
A211: рец. | D211: Б | E211: Ж | F211: У | G211: тическая ценность (ккал)
A212: 1 | C212: 3 | D212: 4 | E212: 5 | F212: 6 | G212: 7
A213: Завтрак
A214: 131 | B214: Плов из мяса птицы (филе) | C214: 200 | D214: 16.9 | E214: 18.56 | F214: 41.44 | G214: 399.79
A215: 685 | B215: Чай с сахаром | C215: 200 | D215: 0.1 | E215: 0 | F215: 9.1 | G215: 35
A216: 43 | B216: Салат из овощей | C216: 60 | D216: 1.3 | E216: 2.7 | F216: 6.2 | G216: 54
A217: 3 | B217: Хлеб пшеничный обогащенный йодированным белком( для детей дошкольного и школьного возраста) | C217: 50 | D217: 4 | E217: 0.6 | F217: 33 | G217: 143
B219: Масса порций | C219: =SUM(C214:C218) -> 510
A220: Итого за Завтрак | D220: =SUM(D214:D219) -> 22.3 | E220: =SUM(E214:E219) -> 21.86 | F220: 89.74 | G220: 631.79
A221: Обед
A222: 53 | B222: Щи из свежей капусты с картофелем | C222: 200 | D222: 1.55 | E222: 4.11 | F222: 7.18 | G222: 73
A223: 469 | B223: Фрикадельки мясные с томатным соусом | C223: 100 | D223: 9.25 | E223: 9.84 | F223: 7.96 | G223: 157.63
A224: 297 | B224: Каша перловая рассыпчатая | C224: 150 | D224: 4.5 | E224: 3.9 | F224: 31 | G224: 180
A225: 685 | B225: Чай с молоком и сахаром | C225: 200 | D225: 1.4 | E225: 1.4 | F225: 11.2 | G225: 61
A226: 3 | B226: Хлеб пшеничный обогащенный йодированным белком( для детей дошкольного и школьного возраста) | C226: 50 | D226: 4 | E226: 0.6 | F226: 33 | G226: 143
A228: Итого за Завтрак | C228: =SUM(C222:C227) -> 700 | D228: =SUM(D222:D227) -> 20.7 | E228: =SUM(E222:E227) -> 19.85 | F228: =SUM(F222:F227) -> 90.34 | G228: =SUM(G222:G227) -> 614.63
A229: Итого за день | C229: =C219+C228 -> 1210 | D229: =D220+D228 -> 43 | E229: =E220+E228 -> 41.71 | F229: =F220+F228 -> 180.08 | G229: =G220+G228 -> 1246.42
A230: Итого стоимость рациона | G230: 167-20
A237: Примерное меню и пищевая ценность приготовляемых блюд
A238: Рацион: Школьное меню | D238: День: | E238: четверг
A239: ОВЗ С 7 до 11лет | C239: Неделя: | E239: 2
A240: № | B240: Прием пищи, наименование блюда | C240: Масса порции | D240: Пищевые вещества (г) | G240: Энерге-
A241: рец. | D241: Б | E241: Ж | F241: У | G241: тическая ценность (ккал)
A242: 1 | C242: 3 | D242: 4 | E242: 5 | F242: 6 | G242: 7
A243: Завтрак
A244: 469 | B244: Фрикадельки мясные с томатным соусом | C244: 100 | D244: 9.25 | E244: 9.84 | F244: 7.96 | G244: 157.63
A245: 212 | B245: Макаронные изделия отварные | C245: 150 | D245: 5.82 | E245: 4.31 | F245: 37.08 | G245: 210.5
A246: 278 | B246: Компот из смеси сухофруктов | C246: 200 | D246: 0.22 | E246: 0 | F246: 36.26 | G246: 138.14
A247: 3 | B247: Хлеб пшеничный обогащенный йодированным белком( для детей дошкольного и школьного возраста) | C247: 50 | D247: 4 | E247: 0.6 | F247: 33 | G247: 143
B248: Масса порций | C248: =SUM(C244:C247) -> 500
A249: Итого за Завтрак | D249: =SUM(D244:D248) -> 19.29 | E249: =SUM(E244:E248) -> 14.75 | F249: 114.3 | G249: 649.27
A250: Обед
A251: 5 | B251: Свекла отварная, порционно | C251: 60 | D251: 0.9 | E251: 0.1 | F251: 5.9 | G251: 28
A252: 148 | B252: Суп-лапша | C252: 200 | D252: 2 | E252: 6 | F252: 11 | G252: 104
A253: 106 | B253: Тефтели из говядины с томатным соусом | C253: 100 | D253: 8.76 | E253: 12.21 | F253: 8.85 | G253: 180.64
... 29 more rows

Sheet ОВЗ 12-18 измен
A1: Примерное меню и пищевая ценность приготовляемых блюд
A2: Рацион: Школьное меню | D2: День: | E2: понедельник
A3: ОВЗ С 12 до 18 лет | C3: Неделя: | E3: 1
A4: № | B4: Прием пищи, наименование блюда | C4: Масса порции | D4: Пищевые вещества (г) | G4: Энерге-
A5: рец. | D5: Б | E5: Ж | F5: У | G5: тическая ценность (ккал)
A6: 1 | C6: 3 | D6: 4 | E6: 5 | F6: 6 | G6: 7
A7: Завтрак
A8: 182 | B8: Каша манная молочная вязкая | C8: 250 | D8: 7.5 | E8: 10 | F8: 40.1 | G8: 297.5
A9: 7 | B9: Сыр (порциями) | C9: 10 | D9: 2.63 | E9: 2.66 | G9: 35
A10: 306 | B10: Яйцо вареное | C10: 40 | D10: 5.08 | E10: 4.6 | F10: 0.28 | G10: 63
A11: 685 | B11: Чай с сахаром | C11: 200 | D11: 0 | E11: 0 | F11: 9.98 | G11: 40
A12: 3 | B12: Хлеб пшеничный обогащенный йодированным белком( для детей дошкольного и школьного возраста) | C12: 50 | D12: 4 | E12: 0.6 | F12: 33 | G12: 143
C13: =SUM(C8:C12) -> 550
A14: Итого за Завтрак | D14: =SUM(D8:D13) -> 19.21 | E14: =SUM(E8:E12) -> 17.86 | F14: =SUM(F8:F12) -> 83.36 | G14: =SUM(G8:G12) -> 578.5
A15: Обед
A16: 6 | B16: Салат из белокачанной капусты | C16: 100 | D16: 2.3 | E16: 5.13 | F16: 11.68 | G16: 103.53
A17: 140 | B17: Суп картофельный с макаронными изделиями | C17: 250 | D17: 2.5 | E17: 2.5 | F17: 21.25 | G17: 121.25
A18: 97 | B18: Жаркое по-домашнему | C18: 220 | D18: 21.23 | E18: 21.89 | F18: 20.79 | G18: 367.88
A19: 295 | B19: Компот из свежих плодов | C19: 200 | D19: 0.2 | E19: 0.1 | F19: 17.2 | G19: 97.6
A20: 3 | B20: Хлеб пшеничный обогащенный йодированным белком( для детей дошкольного и школьного возраста) | C20: 50 | D20: 4 | E20: 0.6 | F20: 33 | G20: 143
A21: Итого за обед | C21: =SUM(C16:C20) -> 820 | D21: =SUM(D16:D20) -> 30.23 | E21: 30.22 | F21: 103.92 | G21: 833.26
A22: Итого за день | C22: =C13+C21 -> 1370 | D22: =D14+D21 -> 49.44 | E22: =E14+E21 -> 48.08 | F22: =F14+F21 -> 187.28 | G22: =G14+G21 -> 1411.76
A23: Итого стоимость рациона | G23: 180-00
A34: Примерное меню и пищевая ценность приготовляемых блюд
A35: Рацион: Школьное меню | D35: День: | E35: вторник
A36: ОВЗ С 12 до 18лет | C36: Неделя: | E36: 1
A37: № | B37: Прием пищи, наименование блюда | C37: Масса порции | D37: Пищевые вещества (г) | G37: Энерге-
A38: рец. | D38: Б | E38: Ж | F38: У | G38: тическая ценность (ккал)
A39: 1 | C39: 3 | D39: 4 | E39: 5 | F39: 6 | G39: 7
A40: Завтрак
A41: 98 | B41: Биточки мясные с томатным соусом | C41: 100 | D41: 9.97 | E41: 11.9 | F41: 8.87 | G41: 182.53
A42: 212 | B42: Макаронные изделия отварные | C42: 200 | D42: 6.95 | E42: 5.14 | F42: 44.26 | G42: 251.2
A43: 278 | B43: Компот из смеси сухофруктов | C43: 200 | D43: 0.22 | E43: 0 | F43: 36.26 | G43: 138.14
A44: 3 | B44: Хлеб пшеничный обогащенный йодированным белком( для детей дошкольного и школьного возраста) | C44: 50 | D44: 4 | E44: 0.6 | F44: 33 | G44: 143
B45: Масса порций | C45: =SUM(C41:C44) -> 550
A46: Итого за Завтрак | D46: =SUM(D41:D45) -> 21.14 | E46: =SUM(E41:E45) -> 17.64 | F46: 122.39 | G46: 714.87
A47: Обед
A48: 6 | B48: Огурцы соленые, порционно | C48: 100 | D48: 0 | E48: 0 | F48: 3 | G48: 50.3
A49: 63 | B49: Суп картофельный с горохом | C49: 250 | D49: 6.25 | E49: 6.25 | F49: 21.25 | G49: 160
A50: 131 | B50: Плов из мяса птицы (филе) | C50: 220 | D50: 18.59 | E50: 20.42 | F50: 45.58 | G50: 440
A51: 685 | B51: Чай с молоком и сахаром | C51: 200 | D51: 1.4 | E51: 1.4 | F51: 11.2 | G51: 61
A52: 3 | B52: Хлеб пшеничный обогащенный йодированным белком( для детей дошкольного и школьного возраста) | C52: 50 | D52: 4 | E52: 0.6 | F52: 33 | G52: 143
A53: Итого за обед | C53: =SUM(C48:C52) -> 820 | D53: =SUM(D48:D52) -> 30.24 | E53: =SUM(E48:E52) -> 28.67 | F53: =SUM(F48:F52) -> 114.03 | G53: =SUM(G48:G52) -> 854.3
A54: Итого за день | C54: =C45+C53 -> 1370 | D54: =D45+D53 -> 30.24 | E54: =E45+E53 -> 28.67 | F54: =F45+F53 -> 114.03 | G54: =G45+G53 -> 854.3
A55: Итого стоимость рациона | G55: 180-00
A63: Примерное меню и пищевая ценность приготовляемых блюд
A64: Рацион: Школьное меню | D64: День: | E64: среда
A65: ОВЗ С 12 до 18лет | C65: Неделя: | E65: 1
A66: № | B66: Прием пищи, наименование блюда | C66: Масса порции | D66: Пищевые вещества (г) | G66: Энерге-
A67: рец. | D67: Б | E67: Ж | F67: У | G67: тическая ценность (ккал)
A68: 1 | C68: 3 | D68: 4 | E68: 5 | F68: 6 | G68: 7
A69: Завтрак
A70: 54 | B70: Рыба, тушенная с овощами (филе минтая)или котлета из рыбы | C70: 100 | D70: 15.46 | E70: 7.78 | F70: 3.13 | G70: 144
A71: 179 | B71: Каша рисовая рассыпчатая | C71: 200 | D71: 4.78 | E71: 5.2 | F71: 49.06 | G71: 266.66
A72: 686 | B72: Чай с лимоном и сахаром | C72: 200 | D72: 0.06 | E72: 0.01 | F72: 10.19 | G72: 42.28
A73: 3 | B73: Хлеб пшеничный обогащенный йодированным белком( для детей дошкольного и школьного возраста) | C73: 50 | D73: 4 | E73: 0.6 | F73: 33 | G73: 143
A74: Итого за Завтрак | C74: =SUM(C70:C73) -> 550 | D74: =SUM(D70:D73) -> 24.3 | E74: =SUM(E70:E73) -> 13.59 | F74: 95.38 | G74: 595.94
A75: Обед
A76: 5 | B76: Свекла отварная порционно | C76: 100 | D76: 1.5 | E76: 0.16 | F76: 9.83 | G76: 46.66
A77: 148 | B77: Суп-лапша | C77: 250 | D77: 5 | E77: 7.5 | F77: 13.75 | G77: 130
A78: 171 | B78: Картофельное пюре | C78: 180 | D78: 3.69 | E78: 5.9 | F78: 24 | G78: 238.8
A79: 469 | B79: Фрикадельки мясные с томатным соусом | C79: 100 | D79: 9.25 | E79: 9.84 | F79: 7.96 | G79: 157.63
A80: 685 | B80: Чай с сахаром | C80: 200 | D80: 0 | E80: 0 | F80: 9.98 | G80: 39.9
A81: 3 | B81: Хлеб пшеничный обогащенный йодированным белком( для детей дошкольного и школьного возраста) | C81: 50 | D81: 4 | E81: 0.6 | F81: 33 | G81: 143
A82: Итого за обед | C82: =SUM(C76:C81) -> 880 | D82: =SUM(D76:D81) -> 23.44 | E82: =SUM(E76:E81) -> 24 | F82: 98.52 | G82: 755.99
A83: Итого за день | C83: =C74+C82 -> 1430 | D83: =D74+D82 -> 47.74 | E83: =E74+E82 -> 37.59 | F83: 193.9 | G83: 1351.93
A84: Итого стоимость рациона | G84: 180-00
A90: Примерное меню и пищевая ценность приготовляемых блюд
A91: Рацион: Школьное меню | D91: День: | E91: четверг
A92: ОВЗ С 12 до 18лет | C92: Неделя: | E92: 1
A93: № | B93: Прием пищи, наименование блюда | C93: Масса порции | D93: Пищевые вещества (г) | G93: Энерге-
A94: рец. | D94: Б | E94: Ж | F94: У | G94: тическая ценность (ккал)
A95: 1 | C95: 3 | D95: 4 | E95: 5 | F95: 6 | G95: 7
A96: Завтрак
A97: 205 | B97: Котлеты куриные из филе кур | C97: 100 | D97: 9.82 | E97: 14.48 | F97: 11.91 | G97: 217
A98: 175 | B98: Каша гречневая рассыпчатая | C98: 200 | D98: 10.9 | E98: 3.8 | F98: 45 | G98: 288.6
A99: 685 | B99: Чай с сахаром | C99: 200 | D99: 0 | E99: 0 | F99: 9.98 | G99: 39.9
A100: 3 | B100: Хлеб пшеничный обогащенный йодированным белком( для детей дошкольного и школьного возраста) | C100: 50 | D100: 4 | E100: 0.6 | F100: 33 | G100: 143
B101: Масса порций | C101: =SUM(C97:C100) -> 550
A102: Итого за Завтрак | D102: =SUM(D97:D101) -> 24.72 | E102: =SUM(E97:E101) -> 18.88 | F102: 99.89 | G102: 688.5
A103: Обед
A104: 17 | B104: Салат из моркови | C104: 100 | D104: 0.7 | E104: 3.05 | F104: 3.75 | G104: 45.98
A105: 56 | B105: Борщ с капустой и картофелем | C105: 250 | D105: 2.53 | E105: 7.08 | F105: 12.7 | G105: 167.7
A106: 98 | B106: Биточки мясные с томатным соусом | C106: 100 | D106: 9.97 | E106: 11.9 | F106: 8.87 | G106: 182.53
A107: 212 | B107: Макаронные изделия отварные | C107: 180 | D107: 6.98 | E107: 5.17 | F107: 44.49 | G107: 252.6
A108: 685 | B108: Чай с сахаром | C108: 200 | D108: 0 | E108: 0 | F108: 9.98 | G108: 39.9
A109: 3 | B109: Хлеб пшеничный обогащенный йодированным белком( для детей дошкольного и школьного возраста) | C109: 50 | D109: 4 | E109: 0.6 | F109: 33 | G109: 143
A110: Итого за обед | C110: =SUM(C104:C109) -> 880 | D110: =SUM(D104:D109) -> 24.18 | E110: =SUM(E104:E109) -> 27.8 | F110: 112.79 | G110: 831.71
A111: Итого за день | C111: =C101+C110 -> 1430 | D111: =D102+D110 -> 48.9 | E111: =E102+E110 -> 46.68 | F111: 212.68 | G111: 1520.21
A112: Итого стоимость рациона | G112: 180-00
A119: Примерное меню и пищевая ценность приготовляемых блюд
A120: Рацион: Школьное меню | D120: День: | E120: пятница
A121: ОВЗ С 12 до 18лет | C121: Неделя: | E121: 1
A122: № | B122: Прием пищи, наименование блюда | C122: Масса порции | D122: Пищевые вещества (г) | G122: Энерге-
A123: рец. | D123: Б | E123: Ж | F123: У | G123: тическая ценность (ккал)
A124: 1 | C124: 3 | D124: 4 | E124: 5 | F124: 6 | G124: 7
A125: Завтрак
A126: 302 | B126: Каша молочная" Дружба" с маслом | C126: 210 | D126: 6.4 | E126: 8.6 | F126: 33.5 | G126: 237.2
A127: 648 | B127: Кисель плодовоягодный | C127: 200 | D127: 0 | E127: 0 | F127: 20 | G127: 76
A128: 1 | B128: Яблоко | C128: 100 | D128: 0.5 | E128: 0.5 | F128: 12.3 | G128: 59
A129: 3 | B129: Хлеб пшеничный обогащенный йодированным белком( для детей дошкольного и школьного возраста) | C129: 50 | D129: 4 | E129: 0.6 | F129: 33 | G129: 143
A130: 27 | B130: Сыр (порциями) | C130: 10 | D130: 2.63 | E130: 2.66 | G130: 35
B131: Масса порций | C131: =SUM(C126:C130) -> 570
A132: Итого за Завтрак | D132: =SUM(D126:D131) -> 13.53 | E132: =SUM(E126:E131) -> 12.36 | F132: 98.8 | G132: 550.2
A133: Обед
A134: 43 | B134: Салат из овощей | C134: 100 | D134: 2.6 | E134: 5.4 | F134: 12.4 | G134: 108
A135: 54 | B135: Рассольник Ленинградский | C135: 250 | D135: 2.61 | E135: 6.26 | F135: 17.37 | G135: 182.92
A136: 33 | B136: Курица тушеная с томатном соусе | C136: 100 | D136: 15.3 | E136: 16.53 | F136: 5.9 | G136: 257.92
A137: 221 | B137: Каша пшеничная рассыпчатая | C137: 180 | D137: 10.44 | E137: 4.92 | F137: 47.28 | G137: 256.8
A138: 685 | B138: Чай с сахаром | C138: 200 | D138: 0 | E138: 0 | F138: 9.98 | G138: 39.9
A139: 3 | B139: Хлеб пшеничный обогащенный йодированным белком( для детей дошкольного и школьного возраста) | C139: 50 | D139: 4 | E139: 0.6 | F139: 33 | G139: 143
A140: Итого за обед | C140: =SUM(C134:C139) -> 880 | D140: =SUM(D134:D139) -> 34.95 | E140: =SUM(E134:E139) -> 33.71 | F140: =SUM(F134:F139) -> 125.93 | G140: =SUM(G134:G139) -> 988.54
A141: Итого за день | C141: =C131+C140 -> 1450 | D141: =D132+D140 -> 48.48 | E141: =E132+E140 -> 46.07 | F141: =F132+F140 -> 224.73 | G141: =G132+G140 -> 1538.74
A142: Итого стоимость рациона | G142: 180-00
A149: Примерное меню и пищевая ценность приготовляемых блюд
A150: Рацион: Школьное меню | D150: День: | E150: понедельник
A151: ОВЗ С 12 до 18лет | C151: Неделя: | E151: 2
A152: № | B152: Прием пищи, наименование блюда | C152: Масса порции | D152: Пищевые вещества (г) | G152: Энерге-
A153: рец. | D153: Б | E153: Ж | F153: У | G153: тическая ценность (ккал)
A154: 1 | C154: 3 | D154: 4 | E154: 5 | F154: 6 | G154: 7
A155: Завтрак
A156: 197 | B156: Каша рисовая молочная жидкая | C156: 210 | D156: 9.1 | E156: 8.2 | F156: 40.9 | G156: 262
A157: 27 | B157: Сыр (порциями) | C157: 10 | D157: 2.63 | E157: 2.66 | G157: 35
A158: 685 | B158: Чай с сахаром | C158: 200 | D158: 0 | E158: 0 | F158: 9.7 | G158: 39
A159: 399 | B159: Сок фруктовый | C159: 200 | D159: 0 | E159: 0 | F159: 12 | G159: 48
A160: 3 | B160: Хлеб пшеничный обогащенный йодированным белком( для детей дошкольного и школьного возраста) | C160: 50 | D160: 4 | E160: 0.6 | F160: 33 | G160: 143
B161: Масса порций | C161: =SUM(C156:C160) -> 670
A162: Итого за Завтрак | D162: =SUM(D156:D161) -> 15.73 | E162: =SUM(E156:E161) -> 11.46 | F162: 95.6 | G162: 527
A163: Обед
A164: 6 | B164: Салат из белокачанной капусты | C164: 100 | D164: 2.3 | E164: 5.11 | F164: 11.68 | G164: 103.53
A165: 63 | B165: Суп картофельный с горохом | C165: 250 | D165: 6.25 | E165: 6.25 | F165: 21.25 | G165: 160
A166: 212 | B166: Макаронные изделия отварные | C166: 180 | D166: 6.98 | E166: 5.17 | F166: 44.49 | G166: 252.6
A167: 205 | B167: Котлеты куриные из филе кур | C167: 100 | D167: 20.68 | E167: 17.03 | F167: 19.79 | G167: 318.55
A168: 648 | B168: Кисель плодовоягодный | C168: 200 | D168: 0 | E168: 0 | F168: 20 | G168: 76
A169: 3 | B169: Хлеб пшеничный обогащенный йодированным белком( для детей дошкольного и школьного возраста) | C169: 50 | D169: 4 | E169: 0.6 | F169: 33 | G169: 143
A170: Итого за обед | C170: =SUM(C164:C169) -> 880 | D170: =SUM(D164:D169) -> 40.21 | E170: =SUM(E164:E169) -> 34.16 | F170: =SUM(F164:F169) -> 150.21 | G170: =SUM(G164:G169) -> 1053.68
A171: Итого за день | C171: =C161+C170 -> 1550 | D171: =D162+D170 -> 55.94 | E171: =E162+E170 -> 45.62 | F171: =F162+F170 -> 245.81 | G171: =G162+G170 -> 1580.68
A172: Итого стоимость рациона | G172: 180-00
A178: Примерное меню и пищевая ценность приготовляемых блюд
A179: Рацион: Школьное меню | D179: День: | E179: вторник
A180: ОВЗ С 12 до 18лет | C180: Неделя: | E180: 2
A181: № | B181: Прием пищи, наименование блюда | C181: Масса порции | D181: Пищевые вещества (г) | G181: Энерге-
A182: рец. | D182: Б | E182: Ж | F182: У | G182: тическая ценность (ккал)
A183: 1 | C183: 3 | D183: 4 | E183: 5 | F183: 6 | G183: 7
A184: Завтрак
A185: 106 | B185: Тефтели из говядины с томатным соусом | C185: 100 | D185: 8.76 | E185: 12.21 | F185: 8.85 | G185: 180.64
A186: 171 | B186: Картофельное пюре | C186: 200 | D186: 4.11 | E186: 6.55 | F186: 26.66 | G186: 265.33
A187: 692 | B187: Кофейный напиток | C187: 200 | D187: 2.8 | E187: 2.2 | F187: 14.8 | G187: 87
A188: 3 | B188: Хлеб пшеничный обогащенный йодированным белком( для детей дошкольного и школьного возраста) | C188: 50 | D188: 4 | E188: 0.6 | F188: 33 | G188: 143
B189: Масса порций | C189: =SUM(C185:C188) -> 550
A190: Итого за Завтрак | D190: =SUM(D185:D189) -> 19.67 | E190: =SUM(E185:E189) -> 21.56 | F190: 83.31 | G190: 675.97
A191: Обед
A192: 6 | B192: Огурцы соленые, порционно | C192: 100 | D192: 0 | E192: 0 | F192: 3 | G192: 50.23
A193: 148 | B193: Суп с клецками | C193: 250 | D193: 2.77 | E193: 5.28 | F193: 15.61 | G193: 121.35
A194: 82 | B194: Котлеты из рыбы с том соусом | C194: 100 | D194: 7.7 | E194: 5.5 | F194: 10.4 | G194: 126.1
A195: 173 | B195: Каша гречневая рассыпчатая | C195: 180 | D195: 10.8 | E195: 8.4 | F195: 46.8 | G195: 308.4
A196: 685 | B196: Чай с сахаром | C196: 200 | D196: 0 | E196: 0 | F196: 9.98 | G196: 39.9
A197: 3 | B197: Хлеб пшеничный обогащенный йодированным белком( для детей дошкольного и школьного возраста) | C197: 50 | D197: 4 | E197: 0.6 | F197: 33 | G197: 143
A198: Итого за обед | C198: =SUM(C192:C197) -> 880 | D198: =SUM(D192:D197) -> 25.27 | E198: =SUM(E192:E197) -> 19.78 | F198: =SUM(F192:F197) -> 118.79 | G198: =SUM(G192:G197) -> 788.98
A199: Итого за день | C199: =C189+C198 -> 1430 | D199: =D190+D198 -> 44.94 | E199: =E190+E198 -> 41.34 | F199: =F190+F198 -> 202.1 | G199: =G190+G198 -> 1464.95
A200: Итого стоимость рациона | G200: 180-00
A207: Примерное меню и пищевая ценность приготовляемых блюд
A208: Рацион: Школьное меню | D208: День: | E208: среда
A209: ОВЗ С 12 до 18лет | C209: Неделя: | E209: 2
A210: № | B210: Прием пищи, наименование блюда | C210: Масса порции | D210: Пищевые вещества (г) | G210: Энерге-
A211: рец. | D211: Б | E211: Ж | F211: У | G211: тическая ценность (ккал)
A212: 1 | C212: 3 | D212: 4 | E212: 5 | F212: 6 | G212: 7
A213: Завтрак
A214: 131 | B214: Плов из мяса птицы (филе) | C214: 220 | D214: 18.59 | E214: 20.41 | F214: 45.58 | G214: 439.76
A215: 685 | B215: Чай с сахаром | C215: 200 | D215: 0.1 | E215: 0 | F215: 9.1 | G215: 35
A216: 43 | B216: Салат из овощей | C216: 100 | D216: 2.16 | E216: 4.5 | F216: 10.33 | G216: 90
A217: 3 | B217: Хлеб пшеничный обогащенный йодированным белком( для детей дошкольного и школьного возраста) | C217: 50 | D217: 4 | E217: 0.6 | F217: 33 | G217: 143
B219: Масса порций | C219: =SUM(C214:C218) -> 570
A220: Итого за Завтрак | D220: =SUM(D214:D219) -> 24.85 | E220: =SUM(E214:E219) -> 25.51 | F220: 98.01 | G220: 707.76
A221: Обед
A222: 53 | B222: Щи из свежей капусты с картофелем | C222: 250 | D222: 1.93 | E222: 5.13 | F222: 8.97 | G222: 91.25
A223: 469 | B223: Фрикадельки мясные с томатным соусом | C223: 100 | D223: 9.25 | E223: 9.84 | F223: 7.96 | G223: 157.63
A224: 297 | B224: Каша перловая рассыпчатая | C224: 180 | D224: 5.4 | E224: 4.68 | F224: 37.2 | G224: 216
A225: 685 | B225: Чай с молоком и сахаром | C225: 200 | D225: 1.4 | E225: 1.4 | F225: 11.2 | G225: 61
A226: 3 | B226: Хлеб пшеничный обогащенный йодированным белком( для детей дошкольного и школьного возраста) | C226: 50 | D226: 4 | E226: 0.6 | F226: 33 | G226: 143
A227: Итого за Завтрак | C227: =SUM(C222:C226) -> 780 | D227: =SUM(D222:D226) -> 21.98 | E227: =SUM(E222:E226) -> 21.65 | F227: =SUM(F222:F226) -> 98.33 | G227: =SUM(G222:G226) -> 668.88
A228: Итого за день | C228: =C219+C227 -> 1350 | D228: =D220+D227 -> 46.83 | E228: =E220+E227 -> 47.16 | F228: =F220+F227 -> 196.34 | G228: =G220+G227 -> 1376.64
A229: Итого стоимость рациона | G229: 180-00
A236: Примерное меню и пищевая ценность приготовляемых блюд
A237: Рацион: Школьное меню | D237: День: | E237: четверг
A238: ОВЗ С 12 до 18лет | C238: Неделя: | E238: 2
A239: № | B239: Прием пищи, наименование блюда | C239: Масса порции | D239: Пищевые вещества (г) | G239: Энерге-
A240: рец. | D240: Б | E240: Ж | F240: У | G240: тическая ценность (ккал)
A241: 1 | C241: 3 | D241: 4 | E241: 5 | F241: 6 | G241: 7
A242: Завтрак
A243: 469 | B243: Фрикадельки мясные с томатным соусом | C243: 100 | D243: 9.25 | E243: 9.84 | F243: 7.96 | G243: 157.63
A244: 212 | B244: Макаронные изделия отварные | C244: 200 | D244: 6.95 | E244: 5.14 | F244: 44.26 | G244: 251.2
A245: 278 | B245: Компот из смеси сухофруктов | C245: 200 | D245: 0.22 | E245: 0 | F245: 36.26 | G245: 138.14
A246: 3 | B246: Хлеб пшеничный обогащенный йодированным белком( для детей дошкольного и школьного возраста) | C246: 50 | D246: 4 | E246: 0.6 | F246: 33 | G246: 143
B247: Масса порций | C247: =SUM(C243:C246) -> 550
A248: Итого за Завтрак | D248: =SUM(D243:D247) -> 20.42 | E248: =SUM(E243:E247) -> 15.58 | F248: 121.48 | G248: 689.97
A249: Обед
A250: 5 | B250: Свекла отварная, порционно | C250: 100 | D250: 1.5 | E250: 0.16 | F250: 9.83 | G250: 46.66
A251: 148 | B251: Суп-лапша | C251: 250 | D251: 5 | E251: 7.5 | F251: 13.75 | G251: 130
A252: 106 | B252: Тефтели из говядины с томатным соусом | C252: 100 | D252: 8.76 | E252: 12.21 | F252: 8.85 | G252: 180.64
... 29 more rows
